bitfinex/quotes_BTCUSD_20240815
["timestamp","ask_amount","ask_price","bid_price","bid_amount"]
[1723724517982,0.0114713,58904.0,58903.0,2.16748854]
[1723724518395,0.0114713,58904.0,58903.0,2.23138854]
[1723724519022,0.0114713,58904.0,58903.0,1.60094754]
[1723724519249,0.0114713,58904.0,58903.0,1.19750654]
[1723724519458,0.0114713,58904.0,58903.0,1.12040654]
[1723724519877,0.0114713,58904.0,58903.0,1.46094754]
[1723724520088,0.0114713,58904.0,58903.0,1.12340654]
[1723724520296,0.0114713,58904.0,58903.0,1.12140654]
[1723724520708,0.0114713,58904.0,58903.0,0.68386554]
[1723724520914,0.0114713,58904.0,58903.0,1.02340654]
[1723724521121,0.0114713,58904.0,58903.0,1.02240654]
[1723724521301,0.0114713,58904.0,58903.0,0.68286554]
[1723724521555,0.0114713,58904.0,58903.0,0.68486554]
[1723724521971,0.0114713,58904.0,58903.0,0.68286554]
[1723724522178,0.0114713,58904.0,58903.0,0.68086554]
[1723724522382,0.0114713,58904.0,58903.0,0.68386554]
[1723724523017,0.4958063,58904.0,58903.0,0.003]
[1723724523249,1.10419113,58904.0,58903.0,0.003]
[1723724523462,1.44372613,58904.0,58903.0,0.003]
[1723724523672,0.0779,58893.0,58887.0,0.51466362]
[1723724523891,0.0779,58893.0,58888.0,0.17155454]
[1723724524106,0.0779,58898.0,58888.0,0.17155454]
[1723724524323,0.339579,58897.0,58890.0,0.169807]
[1723724524533,0.362583,58896.0,58887.0,0.339629]
[1723724524741,0.0645,58895.0,58882.0,0.0009053]
[1723724524966,0.0798,58888.0,58883.0,0.51121054]
[1723724525180,0.0798,58888.0,58885.0,0.16982]
[1723724525826,0.0798,58888.0,58886.0,0.169818]
[1723724526246,0.0798,58888.0,58887.0,0.169816]
[1723724526454,0.39034762,58892.0,58891.0,0.169805]
[1723724526455,0.05073962,58892.0,58891.0,0.169805]
[1723724526666,0.05073962,58892.0,58887.0,0.17155454]
[1723724526667,0.05073962,58895.0,58894.0,0.339593]
[1723724526884,0.15770943,58896.0,58895.0,0.50938]
[1723724526885,0.05073962,58896.0,58895.0,0.50938]
[1723724527104,0.05073962,58901.0,58900.0,0.509337]
[1723724527313,0.07610943,58902.0,58901.0,0.169776]
[1723724527314,0.05079019,58902.0,58901.0,0.169776]
[1723724527501,0.05078897,58902.0,58901.0,0.509328]
[1723724528012,0.05078897,58902.0,58901.0,0.169776]
[1723724528547,0.05078897,58902.0,58886.0,0.169818]
[1723724528548,0.16981,58890.0,58886.0,0.169818]
[1723724528791,0.33961,58891.0,58883.0,0.0767064]
[1723724528792,0.251405,58891.0,58887.0,0.17155454]
[1723724529042,0.000824,58890.0,58889.0,0.169811]
[1723724529301,0.000824,58890.0,58887.0,0.17155454]
[1723724529507,0.064724,58890.0,58887.0,0.169816]
[1723724529712,0.064724,58890.0,58885.0,0.339641]
[1723724529713,0.169812,58889.0,58885.0,0.169821]
[1723724529919,0.169812,58889.0,58883.0,0.3405584]
[1723724529920,0.064724,58890.0,58886.0,0.169819]
[1723724530181,0.169811,58889.0,58884.0,0.339647]
[1723724530418,0.169819,58886.0,58883.0,0.0009064]
[1723724530627,0.169814,58888.0,58884.0,0.169823]
[1723724530836,0.169814,58888.0,58883.0,0.1707334]
[1723724530837,0.169818,58887.0,58883.0,0.1707334]
[1723724531045,0.16982,58886.0,58883.0,0.0009064]
[1723724531246,0.05079761,58887.0,58883.0,0.0009064]
[1723724531495,0.05079761,58887.0,58884.0,0.169824]
[1723724531496,0.169817,58887.0,58884.0,0.169824]
[1723724531720,0.05079761,58889.0,58885.0,0.169821]
[1723724531956,0.05079761,58889.0,58886.0,0.169817]
[1723724531957,0.005,58888.0,58886.0,0.169817]
[1723724532425,0.001,58889.0,58886.0,0.169817]
[1723724532639,0.28532961,58890.0,58889.0,0.169811]
[1723724532640,0.05162161,58890.0,58889.0,0.169811]
[1723724532834,0.005,58887.0,58886.0,0.169817]
[1723724533309,0.005,58887.0,58885.0,0.169822]
[1723724533526,0.005,58887.0,58886.0,0.001]
[1723724533949,0.169815,58888.0,58884.0,0.169824]
[1723724534151,0.169815,58888.0,58885.0,0.169822]
[1723724534665,0.169811,58889.0,58885.0,0.169822]
[1723724534872,0.05162161,58890.0,58884.0,0.339648]
[1723724534873,0.005,58888.0,58886.0,0.169819]
[1723724535070,0.005,58888.0,58887.0,0.169816]
[1723724535486,0.22142961,58890.0,58889.0,0.509433]
[1723724535487,0.05162161,58890.0,58889.0,0.509433]
[1723724535685,0.05162161,58890.0,58888.0,0.169813]
[1723724535891,0.169816,58888.0,58884.0,0.169825]
[1723724536245,0.169816,58888.0,58883.0,0.0009064]
[1723724536246,0.509458,58886.0,58885.0,0.001]
[1723724536449,0.509458,58886.0,58859.0,0.03402]
[1723724536450,0.0782,58884.0,58859.0,0.03402]
[1723724536710,0.0782,58884.0,58858.0,0.0009053]
[1723724536711,0.1382,58860.0,58858.0,0.0009053]
[1723724536850,0.0782,58860.0,58858.0,0.0009053]
[1723724537252,0.169897,58859.0,58858.0,0.0009053]
[1723724537418,0.0782,58860.0,58858.0,0.0009053]
[1723724537620,0.532692,58859.0,58858.0,0.0009053]
[1723724537852,1.31592703,58859.0,58858.0,0.0009053]
[1723724538056,1.212282,58859.0,58858.0,0.0009053]
[1723724538228,0.872487,58859.0,58858.0,0.0009053]
[1723724538433,0.532692,58859.0,58858.0,0.0009053]
[1723724538654,0.872487,58859.0,58858.0,0.0009053]
[1723724538921,0.532692,58859.0,58858.0,0.0009053]
[1723724539122,0.872487,58859.0,58858.0,0.0019053]
[1723724539943,1.212282,58859.0,58858.0,0.0019053]
[1723724540161,0.872487,58859.0,58858.0,0.0019053]
[1723724543302,1.212282,58859.0,58858.0,0.0019053]
[1723724543928,1.3413302,58859.0,58858.0,0.0019053]
[1723724544568,1.212282,58859.0,58858.0,0.0019053]
[1723724544777,1.552077,58859.0,58858.0,0.0019053]
[1723724544985,1.212282,58859.0,58858.0,0.0019053]
[1723724545192,1.212282,58859.0,58856.0,0.0009053]
[1723724545193,1.189321,58857.0,58856.0,1e-08]
[1723724545401,1.212321,58857.0,58856.0,1e-08]
[1723724546980,1.3754026,58857.0,58856.0,0.00300001]
[1723724548699,1.7152086,58857.0,58856.0,0.00300001]
[1723724550192,1.212321,58857.0,58856.0,0.00300001]
[1723724551265,1.698527,58857.0,58856.0,0.00300001]
[1723724551689,0.954515,58857.0,58856.0,0.00300001]
[1723724551922,0.872515,58857.0,58856.0,0.00300001]
[1723724553079,0.87231066,58857.0,58856.0,0.00300001]
[1723724554968,1.4206427,58857.0,58856.0,0.00300001]
[1723724555196,1.29121666,58857.0,58856.0,0.00300001]
[1723724555648,1.29121666,58857.0,58851.0,0.0009053]
[1723724555649,1.189422,58852.0,58851.0,0.0009053]
[1723724555867,1.86601154,58852.0,58851.0,0.0009053]
[1723724557141,1.86601154,58852.0,58851.0,0.0039053]
[1723724557366,1.354622,58852.0,58851.0,0.0039053]
[1723724558260,1.40945507,58852.0,58851.0,0.0039053]
[1723724558471,1.40945507,58852.0,58851.0,0.0009053]
[1723724558910,1.92084461,58852.0,58851.0,0.0009053]
[1723724559116,1.93384461,58852.0,58851.0,0.0009053]
[1723724559416,1.94584461,58852.0,58851.0,0.0009053]
[1723724559509,1.89101154,58852.0,58851.0,0.0009053]
[1723724560349,1.189503,58848.0,58847.0,1e-08]
[1723724560555,1.212503,58848.0,58847.0,1e-08]
[1723724560979,0.872645,58848.0,58847.0,1e-08]
[1723724561194,0.169929,58848.0,58847.0,1e-08]
[1723724561409,0.509787,58848.0,58847.0,1e-08]
[1723724561619,1.196503,58848.0,58847.0,1e-08]
[1723724562457,1.204503,58848.0,58847.0,1e-08]
[1723724562665,0.864645,58848.0,58847.0,1e-08]
[1723724563079,1.227503,58848.0,58847.0,1e-08]
[1723724563283,1.305303,58848.0,58847.0,1e-08]
[1723724566145,1.365503,58848.0,58847.0,1e-08]
[1723724566351,0.169969,58834.0,58831.0,0.169977]
[1723724566553,0.339932,58836.0,58831.0,0.34153154]
[1723724566554,0.169967,58835.0,58831.0,0.34153154]
[1723724567097,0.169978,58832.0,58830.0,0.009053]
[1723724567716,0.169975,58832.0,58831.0,0.001]
[1723724567923,0.509926,58832.0,58831.0,0.001]
[1723724568145,0.872877,58832.0,58831.0,0.001]
[1723724568346,1.212828,58832.0,58831.0,0.001]
[1723724568965,0.84989,58831.0,58830.0,0.009053]
[1723724569175,0.87289,58831.0,58830.0,0.009053]
[1723724569393,0.87289,58831.0,58830.0,0.010053]
[1723724569592,0.87289,58831.0,58830.0,0.009053]
[1723724570414,0.001,58832.0,58830.0,0.009053]
[1723724570625,0.001,58831.0,58830.0,0.010053]
[1723724570840,0.170978,58831.0,58830.0,0.010053]
[1723724571245,0.002,58831.0,58830.0,0.010053]
[1723724571681,0.171978,58831.0,58830.0,0.010053]
[1723724572099,0.170978,58831.0,58830.0,0.009053]
[1723724572305,0.001,58831.0,58830.0,0.009053]
[1723724572510,0.001,58831.0,58830.0,0.010053]
[1723724572724,0.08677727,58831.0,58830.0,0.009053]
[1723724572930,0.87389,58831.0,58830.0,0.009053]
[1723724573170,0.87389,58831.0,58830.0,0.010053]
[1723724573354,0.87489,58831.0,58830.0,0.010053]
[1723724573560,0.534934,58831.0,58830.0,0.010053]
[1723724573768,0.002,58831.0,58830.0,0.010053]
[1723724575036,0.002,58831.0,58830.0,0.519996]
[1723724575247,0.002,58831.0,58830.0,0.598596]
[1723724576903,0.002,58831.0,58830.0,1.11011254]
[1723724577117,0.511934,58831.0,58830.0,0.010053]
[1723724577332,0.511934,58831.0,58830.0,1e-08]
[1723724577333,0.9174034,58831.0,58830.0,1e-08]
[1723724577565,1.191846,58831.0,58830.0,1e-08]
[1723724578271,1.214846,58831.0,58830.0,1e-08]
[1723724578705,1.213846,58831.0,58830.0,1e-08]
[1723724579133,0.509977,58826.0,58825.0,0.009053]
[1723724579346,0.849962,58826.0,58825.0,0.009053]
[1723724581078,1.3319404,58826.0,58825.0,0.009053]
[1723724581293,1.48772676,58826.0,58825.0,0.009053]
[1723724581938,1.92327994,58826.0,58825.0,0.009053]
[1723724582214,2.46293135,58826.0,58825.0,0.009053]
[1723724582429,2.3616162,58826.0,58825.0,0.009053]
[1723724582637,1.189989,58824.0,58823.0,0.009053]
[1723724582841,1.93313434,58824.0,58823.0,0.009053]
[1723724583514,2.06005719,58824.0,58823.0,0.009053]
[1723724583723,2.48583146,58824.0,58823.0,0.009053]
[1723724584146,2.35890861,58824.0,58823.0,0.009053]
[1723724584364,2.48881407,58824.0,58823.0,0.009053]
[1723724585229,2.43770861,58824.0,58823.0,0.009053]
[1723724585443,1.190231,58812.0,58811.0,0.0002]
[1723724585653,1.24099217,58812.0,58811.0,0.0002]
[1723724585860,1.28937276,58812.0,58811.0,0.0002]
[1723724586102,1.213231,58812.0,58811.0,0.0002]
[1723724586312,1.553297,58812.0,58811.0,0.0002]
[1723724586524,2.20351057,58812.0,58811.0,0.0002]
[1723724587199,3.20857476,58812.0,58811.0,0.0002]
[1723724587427,3.22011173,58812.0,58811.0,0.0002]
[1723724587638,3.68321169,58812.0,58811.0,0.0002]
[1723724588054,1.899327,58807.0,58806.0,0.0009064]
[1723724588287,2.70719106,58807.0,58806.0,0.0009064]
[1723724589121,2.5710627,58807.0,58806.0,0.0009064]
[1723724589386,2.40782435,58807.0,58806.0,0.0009064]
[1723724589906,1.7730677,58807.0,58806.0,0.0009064]
[1723724590126,0.884237,58807.0,58806.0,0.0009064]
[1723724590529,0.896237,58807.0,58806.0,0.0009064]
[1723724590726,1.02493597,58807.0,58806.0,0.0009064]
[1723724591610,0.023,58807.0,58806.0,0.0824064]
[1723724592038,0.023,58807.0,58806.0,0.5925574]
[1723724592238,0.023,58807.0,58806.0,0.9326584]
[1723724592607,0.023,58807.0,58806.0,0.5925574]
[1723724592829,0.012,58807.0,58806.0,0.5925574]
[1723724593036,0.170039,58810.0,58807.0,0.170047]
[1723724593246,0.340057,58814.0,58806.0,0.4225074]
[1723724593247,0.340055,58814.0,58808.0,0.340088]
[1723724593453,0.170034,58812.0,58807.0,0.340094]
[1723724593660,0.340055,58814.0,58809.0,0.17004]
[1723724593866,0.170033,58812.0,58808.0,0.340089]
[1723724594137,0.170033,58812.0,58809.0,0.17004]
[1723724594400,0.340045,58816.0,58807.0,0.170047]
[1723724594633,0.170038,58811.0,58807.0,0.170046]
[1723724594883,0.340068,58812.0,58806.0,0.4225024]
[1723724595147,0.170036,58811.0,58807.0,0.170045]
[1723724595656,0.170036,58811.0,58808.0,0.170043]
[1723724595913,0.170036,58811.0,58806.0,0.4225024]
[1723724596190,0.006,58811.0,58808.0,0.170043]
[1723724596526,0.006,58811.0,58809.0,0.170041]
[1723724596679,0.178034,58812.0,58809.0,0.170041]
[1723724596920,0.170037,58811.0,58808.0,0.170042]
[1723724597132,0.177037,58811.0,58808.0,0.170042]
[1723724597342,0.177037,58811.0,58807.0,0.170047]
[1723724597343,0.170039,58810.0,58807.0,0.170047]
[1723724597998,0.347074,58811.0,58806.0,0.0824064]
[1723724597999,0.170042,58809.0,58806.0,0.2524564]
[1723724598176,0.170042,58809.0,58806.0,0.2524164]
[1723724598416,0.170039,58810.0,58806.0,0.2524164]
[1723724598621,0.170043,58809.0,58806.0,0.0823664]
[1723724598798,0.007,58811.0,58806.0,0.0823664]
[1723724599051,0.170045,58808.0,58806.0,0.0823664]
[1723724599857,0.170042,58809.0,58806.0,0.2524164]
[1723724599986,0.170042,58809.0,58806.0,0.0823664]
[1723724600186,0.170045,58808.0,58806.0,0.0823664]
[1723724600415,0.170047,58807.0,58806.0,0.0823664]
[1723724600831,0.174045,58808.0,58806.0,0.0823664]
[1723724600998,0.004,58808.0,58806.0,0.2524164]
[1723724601198,0.174044,58808.0,58806.0,0.0823664]
[1723724601600,0.170047,58807.0,58806.0,0.0008664]
[1723724601976,0.510142,58807.0,58806.0,0.0008664]
[1723724602183,0.873237,58807.0,58806.0,0.0008664]
[1723724602357,0.533142,58807.0,58806.0,0.0008664]
[1723724602793,0.537142,58807.0,58806.0,0.0008664]
[1723724603392,0.004,58807.0,58806.0,0.0008664]
[1723724603599,0.174047,58807.0,58806.0,0.0008664]
[1723724605783,0.514142,58807.0,58806.0,0.0008664]
[1723724606440,0.9966674,58807.0,58806.0,0.0008664]
[1723724606657,1.296332,58807.0,58806.0,0.0008664]
[1723724606886,1.296332,58807.0,58805.0,0.009064]
[1723724606887,1.190353,58806.0,58805.0,0.009064]
[1723724607105,1.213353,58806.0,58805.0,0.009064]
[1723724607315,1.3452883,58806.0,58805.0,0.009064]
[1723724608159,1.3462883,58806.0,58805.0,0.009064]
[1723724608368,1.214353,58806.0,58805.0,0.009064]
[1723724608568,1.213353,58806.0,58805.0,0.009064]
[1723724608921,1.221353,58806.0,58805.0,0.009064]
[1723724609125,1.222353,58806.0,58805.0,0.009064]
[1723724609385,1.213353,58806.0,58805.0,0.009064]
[1723724609718,1.224353,58806.0,58805.0,0.009064]
[1723724610760,1.233353,58806.0,58805.0,0.009064]
[1723724611181,0.893252,58806.0,58805.0,0.009064]
[1723724612833,1.33353013,58806.0,58805.0,0.009064]
[1723724613053,1.67363113,58806.0,58805.0,0.009064]
[1723724613238,1.33353013,58806.0,58805.0,0.009064]
[1723724613438,1.233353,58806.0,58805.0,0.009064]
[1723724614415,1.28412633,58806.0,58805.0,0.009064]
[1723724616404,1.86296136,58806.0,58805.0,0.009064]
[1723724617481,1.91815632,58806.0,58805.0,0.009064]
[1723724617942,2.07415632,58806.0,58805.0,0.009064]
[1723724618148,2.07415632,58806.0,58799.0,0.009064]
[1723724618149,1.562076,58800.0,58799.0,0.009064]
[1723724618398,2.60101406,58800.0,58799.0,0.009064]
[1723724618595,2.5739811,58800.0,58799.0,0.009064]
[1723724619298,2.9753171,58800.0,58799.0,0.009064]
[1723724619654,3.65841347,58800.0,58799.0,0.009064]
[1723724619840,3.67241347,58800.0,58799.0,0.009064]
[1723724620053,3.51634547,58800.0,58797.0,0.009064]
[1723724620264,1.530661,58798.0,58797.0,0.009064]
[1723724620485,2.59097193,58798.0,58797.0,0.009064]
[1723724620722,2.78552647,58798.0,58797.0,0.009064]
[1723724620946,2.27382493,58798.0,58797.0,0.009064]
[1723724621168,0.88743456,58798.0,58797.0,0.009064]
[1723724621396,1.22758156,58798.0,58797.0,0.009064]
[1723724622044,1.22758156,58798.0,58797.0,1e-08]
[1723724622494,0.07623293,58798.0,58797.0,0.14350001]
[1723724622712,0.028,58800.0,58797.0,0.14350001]
[1723724622923,0.170063,58802.0,58798.0,0.170072]
[1723724623141,0.028,58798.0,58797.0,0.14350001]
[1723724623420,0.028,58798.0,58797.0,0.65372701]
[1723724623639,0.05081948,58806.0,58805.0,0.170053]
[1723724624084,0.05081948,58809.0,58808.0,0.170044]
[1723724624093,0.000825,58811.0,58810.0,1.190273]
[1723724624320,0.000825,58811.0,58800.0,0.2902]
[1723724624321,0.170073,58798.0,58795.0,0.0625]
[1723724624553,0.51022,58798.0,58795.0,0.0625]
[1723724625045,0.850367,58798.0,58795.0,0.0625]
[1723724625269,1.32642826,58798.0,58795.0,0.0625]
[1723724625477,1.34942826,58798.0,58795.0,0.0625]
[1723724625892,1.36342826,58798.0,58795.0,0.0625]
[1723724626101,1.36742826,58798.0,58795.0,0.0625]
[1723724626306,1.34942826,58798.0,58795.0,0.0625]
[1723724626512,0.66913426,58798.0,58795.0,0.0625]
[1723724626715,0.67313426,58798.0,58795.0,0.0625]
[1723724626919,1.251781,58798.0,58795.0,0.0625]
[1723724627147,1.35327158,58798.0,58795.0,0.0625]
[1723724627359,1.33927158,58798.0,58795.0,0.0625]
[1723724628170,0.9396793,58798.0,58795.0,0.0625]
[1723724628379,0.9396793,58798.0,58795.0,0.23258]
[1723724628380,0.05087862,58798.0,58795.0,0.23258]
[1723724628585,0.05087862,58798.0,58795.0,0.0625]
[1723724628586,0.170073,58798.0,58795.0,0.0625]
[1723724628833,0.008,58798.0,58795.0,0.232582]
[1723724629032,0.187073,58798.0,58795.0,0.232582]
[1723724629362,0.187073,58798.0,58795.0,0.0625]
[1723724630511,0.867367,58798.0,58795.0,0.0625]
[1723724630929,1.3448005,58798.0,58795.0,0.0625]
[1723724631348,1.36954671,58798.0,58795.0,0.0625]
[1723724631676,1.24229947,58798.0,58795.0,0.0625]
[1723724631885,1.34409518,58798.0,58795.0,0.0625]
[1723724632304,0.52722,58798.0,58795.0,0.0625]
[1723724632507,0.60356451,58798.0,58795.0,0.0625]
[1723724633417,0.52722,58798.0,58795.0,0.0625]
[1723724634327,0.26342199,58798.0,58797.0,0.08000001]
[1723724634794,0.60356899,58798.0,58797.0,0.08000001]
[1723724635230,1.39336867,58798.0,58797.0,1e-08]
[1723724635433,1.73351567,58798.0,58797.0,1e-08]
[1723724635640,1.39336867,58798.0,58797.0,1e-08]
[1723724638304,1.36792034,58798.0,58797.0,1e-08]
[1723724639989,0.96671732,58798.0,58797.0,1e-08]
[1723724640189,0.96671637,58798.0,58797.0,1e-08]
[1723724640345,0.96671961,58798.0,58797.0,1e-08]
[1723724640541,0.96671933,58798.0,58797.0,1e-08]
[1723724640765,0.890367,58798.0,58797.0,1e-08]
[1723724641173,1.36866487,58798.0,58797.0,1e-08]
[1723724641575,1.36948887,58798.0,58797.0,1e-08]
[1723724641775,1.6078367,58798.0,58797.0,1e-08]
[1723724641979,1.73508566,58798.0,58797.0,1e-08]
[1723724642647,0.83913178,58798.0,58792.0,0.009064]
[1723724642791,0.85044,58793.0,58792.0,0.009064]
[1723724643114,1.5901147,58793.0,58792.0,0.009064]
[1723724643288,1.58512696,58793.0,58792.0,0.009064]
[1723724644115,1.58912696,58793.0,58792.0,0.009064]
[1723724644928,1.25195096,58793.0,58792.0,0.009064]
[1723724645133,1.59212696,58793.0,58792.0,0.009064]
[1723724645297,1.7636815,58793.0,58792.0,0.009064]
[1723724647558,1.8430815,58793.0,58792.0,0.009064]
[1723724647720,1.67152696,58793.0,58792.0,0.009064]
[1723724647927,1.59212696,58793.0,58792.0,0.009064]
[1723724648124,1.25195096,58793.0,58792.0,0.071064]
[1723724649137,0.50580587,58793.0,58792.0,0.071064]
[1723724649337,0.50580587,58793.0,58792.0,1.002319]
[1723724649338,0.007,58793.0,58792.0,1.002319]
[1723724649541,0.05792114,58793.0,58792.0,0.662137]
[1723724649768,0.007,58793.0,58792.0,0.662137]
[1723724650163,0.007,58793.0,58792.0,0.321955]
[1723724650364,0.05392114,58793.0,58792.0,0.151864]
[1723724650564,0.22100914,58793.0,58792.0,0.151864]
[1723724650767,0.58864928,58793.0,58792.0,0.071064]
[1723724650971,1.52894762,58793.0,58792.0,0.009064]
[1723724651174,1.65148345,58793.0,58792.0,0.009064]
[1723724651406,1.67248345,58793.0,58792.0,0.009064]
[1723724651607,1.82423301,58793.0,58792.0,0.009064]
[1723724651777,1.82723301,58793.0,58792.0,0.009064]
[1723724652181,1.81999535,58793.0,58792.0,0.009064]
[1723724652634,1.83099535,58793.0,58792.0,0.009064]
[1723724653065,1.59547465,58793.0,58792.0,0.009064]
[1723724653202,1.59347465,58793.0,58792.0,0.009064]
[1723724653403,1.59742465,58793.0,58792.0,0.009064]
[1723724653608,1.59342465,58793.0,58792.0,0.009064]
[1723724654001,1.60542465,58793.0,58792.0,0.009064]
[1723724655649,3.04330328,58793.0,58792.0,0.003231]
[1723724655853,3.04330328,58793.0,58788.0,0.009064]
[1723724655854,0.850497,58789.0,58788.0,0.009064]
[1723724656062,2.27346058,58789.0,58788.0,0.009064]
[1723724656272,2.88320168,58789.0,58788.0,0.009064]
[1723724656477,3.19655002,58789.0,58788.0,0.009064]
[1723724656691,3.024719,58789.0,58788.0,0.009064]
[1723724657095,3.038719,58789.0,58788.0,0.009064]
[1723724657297,3.19649818,58789.0,58788.0,0.009064]
[1723724657763,3.22067079,58789.0,58788.0,1e-08]
[1723724658585,3.04889161,58789.0,58788.0,1e-08]
[1723724659317,3.06289161,58789.0,58788.0,1e-08]
[1723724662315,3.00766146,58789.0,58788.0,1e-08]
[1723724665739,0.850657,58778.0,58775.0,0.0614]
[1723724665938,0.92442325,58778.0,58775.0,0.0614]
[1723724667223,0.93042325,58778.0,58775.0,0.0614]
[1723724667447,1.27068625,58778.0,58775.0,0.0614]
[1723724667622,1.27068625,58778.0,58771.0,0.009264]
[1723724667623,2.31985983,58778.0,58771.0,0.009264]
[1723724667859,2.47215859,58778.0,58771.0,0.009264]
[1723724668051,3.25902607,58778.0,58771.0,0.009264]
[1723724668255,3.32022607,58778.0,58771.0,0.009264]
[1723724668415,1.902441,58772.0,58771.0,0.009264]
[1723724668610,2.62593646,58772.0,58771.0,0.009264]
[1723724669010,2.28563846,58772.0,58771.0,0.009264]
[1723724669481,2.4123244,58772.0,58771.0,0.009264]
[1723724669827,2.28563846,58772.0,58771.0,0.009264]
[1723724670063,2.41232439,58772.0,58771.0,0.009264]
[1723724670268,2.30341304,58772.0,58771.0,0.009264]
[1723724670476,2.43010614,58772.0,58771.0,0.009264]
[1723724671515,2.44410614,58772.0,58771.0,0.009264]
[1723724671713,2.45810614,58772.0,58771.0,0.009264]
[1723724672398,2.33141304,58772.0,58771.0,0.009264]
[1723724672631,0.850875,58763.0,58762.0,0.08577727]
[1723724672835,0.170178,58762.0,58761.0,0.0651]
[1723724673042,0.510534,58762.0,58761.0,0.0651]
[1723724674151,0.170175,58763.0,58761.0,0.0651]
[1723724674360,0.22082844,58771.0,58768.0,0.0821]
[1723724674566,0.01777458,58772.0,58768.0,0.16787727]
[1723724674780,0.170157,58769.0,58768.0,0.16787727]
[1723724674982,0.850787,58769.0,58768.0,0.0821]
[1723724676121,0.873787,58769.0,58768.0,0.0821]
[1723724676942,0.170155,58770.0,58768.0,0.16787727]
[1723724677143,0.170152,58771.0,58768.0,0.16787727]
[1723724677332,0.170155,58770.0,58768.0,0.16787727]
[1723724677539,0.025,58769.0,58768.0,0.16787727]
[1723724677864,0.025,58769.0,58768.0,0.33803727]
[1723724678062,0.013,58769.0,58768.0,0.33803727]
[1723724678349,0.01777458,58772.0,58769.0,0.170156]
[1723724678549,0.01777458,58772.0,58767.0,0.0644]
[1723724678550,0.850802,58768.0,58767.0,0.0644]
[1723724678695,0.850845,58765.0,58764.0,0.0772]
[1723724678893,0.510507,58765.0,58764.0,0.0772]
[1723724679093,0.533507,58765.0,58764.0,0.0772]
[1723724681205,0.538507,58765.0,58764.0,0.0772]
[1723724681604,0.204169,58765.0,58764.0,0.0772]
[1723724682840,0.544507,58765.0,58764.0,0.0772]
[1723724683471,0.181169,58765.0,58764.0,0.0772]
[1723724683676,0.011,58765.0,58764.0,0.247372]
[1723724683802,0.011,58765.0,58764.0,0.0772]
[1723724685740,0.011,58765.0,58764.0,0.247372]
[1723724685942,0.181169,58765.0,58764.0,0.0772]
[1723724686323,0.521507,58765.0,58764.0,0.0772]
[1723724687271,0.181169,58765.0,58764.0,0.0772]
[1723724687760,0.544507,58765.0,58764.0,0.0772]
[1723724687990,0.011,58765.0,58764.0,0.16297727]
[1723724688219,0.011,58765.0,58764.0,0.33314927]
[1723724688432,0.011,58765.0,58764.0,0.16297727]
[1723724688631,0.011,58765.0,58764.0,0.0772]
[1723724688836,0.181169,58765.0,58764.0,0.0772]
[1723724689812,0.181169,58765.0,58764.0,0.0781075]
[1723724689965,0.521507,58765.0,58764.0,0.0781075]
[1723724690169,0.544507,58765.0,58764.0,0.0781075]
[1723724691537,0.884845,58765.0,58764.0,0.0009075]
[1723724692298,1.01995951,58765.0,58764.0,0.0009075]
[1723724693117,0.884845,58765.0,58764.0,0.0009075]
[1723724693759,0.544507,58765.0,58764.0,0.0009075]
[1723724696360,0.59518305,58765.0,58764.0,0.0009075]
[1723724698380,0.544507,58765.0,58764.0,0.0009075]
[1723724699266,0.62052108,58765.0,58764.0,0.0009075]
[1723724700094,0.28018308,58765.0,58764.0,0.0009075]
[1723724700299,0.36663011,58765.0,58764.0,0.6524235]
[1723724700520,0.36663011,58765.0,58764.0,0.3120795]
[1723724700521,0.08714353,58765.0,58764.0,0.3120795]
[1723724700862,0.011,58765.0,58764.0,1.16432204]
[1723724700991,0.011,58765.0,58764.0,1.50466604]
[1723724701196,0.011,58765.0,58764.0,2.18535404]
[1723724701395,0.011,58765.0,58764.0,2.31518179]
[1723724701596,0.000825,58772.0,58771.0,1.19306]
[1723724701827,0.000825,58772.0,58771.0,2.13261754]
[1723724701982,0.000825,58772.0,58771.0,2.23261754]
[1723724702181,0.0507914,58785.0,58784.0,0.85057]
[1723724702407,0.0507914,58786.0,58785.0,0.510333]
[1723724702608,0.0507914,58786.0,58785.0,0.850555]
[1723724702988,0.0507914,58788.0,58786.0,0.423017]
[1723724703198,0.0507914,58789.0,58788.0,0.510307]
[1723724703421,0.10158281,58792.0,58790.0,0.170096]
[1723724703422,0.07618711,58791.0,58790.0,0.170096]
[1723724703625,0.0507914,58792.0,58790.0,0.170096]
[1723724703801,0.0507914,58792.0,58791.0,0.510282]
[1723724704037,0.000825,58793.0,58792.0,0.170091]
[1723724704445,0.000825,58793.0,58790.0,0.170094]
[1723724704446,0.05157996,58793.0,58790.0,0.170094]
[1723724704655,0.05157996,58793.0,58788.0,0.340205]
[1723724704857,0.22166896,58793.0,58790.0,0.170096]
[1723724705060,0.008,58792.0,58791.0,0.170094]
[1723724705266,0.008,58792.0,58791.0,0.510282]
[1723724705483,0.05157996,58793.0,58792.0,0.510273]
[1723724705484,0.010825,58793.0,58792.0,0.510273]
[1723724705688,0.000825,58793.0,58792.0,0.510273]
[1723724705887,0.009825,58793.0,58792.0,0.510273]
[1723724706099,0.019825,58793.0,58792.0,0.989455]
[1723724706307,0.019825,58793.0,58792.0,1.50119154]
[1723724706721,0.170095,58791.0,58788.0,0.002]
[1723724706924,0.009825,58793.0,58788.0,0.001]
[1723724707129,0.170091,58792.0,58788.0,0.001]
[1723724707344,0.170913,58793.0,58788.0,0.170102]
[1723724707554,0.170091,58792.0,58788.0,0.170102]
[1723724707760,0.179913,58793.0,58789.0,0.170099]
[1723724707974,0.170095,58791.0,58787.0,0.309104]
[1723724708180,0.179913,58793.0,58789.0,0.170098]
[1723724708383,0.170092,58792.0,58788.0,0.170102]
[1723724708591,0.170092,58792.0,58788.0,0.171102]
[1723724708794,0.170092,58792.0,58789.0,0.170099]
[1723724709022,0.018825,58793.0,58789.0,0.170099]
[1723724709263,0.170914,58793.0,58789.0,0.170099]